fUST/lending_fUST_20260129
["ID","MTS","AMOUNT","RATE_DAILY","PERIOD"]
[403882966,1769626241501,-823.0,0.00016461,2]
[403882967,1769626241510,-200.0,0.00016473,2]
[403882968,1769626241520,-3292.0,0.00016528,2]
[403882969,1769626241529,-3500.0,0.0001656,2]
[403882970,1769626241537,-3500.0,0.00016986,2]
[403882971,1769626241546,-1041.66666667,0.00017056,2]
[403882972,1769626241555,-160.0,0.00017056,2]
[403882973,1769626241564,-160.0,0.00017056,2]
[403882974,1769626241572,-3500.0,0.00017108,2]
[403882975,1769626241581,-1000.0,0.00017295,2]
[403882976,1769626241590,-4000.0,0.00017534,2]
[403882977,1769626241599,-482.74829764,0.0001758,2]
[403882978,1769626241608,-3883.43021948,0.00017754,2]
[403882979,1769626241617,-150.12313849,0.00017808,2]
[403882980,1769626241626,-210.218706,0.00017808,7]
[403882981,1769626241636,-281.81382901,0.00017842,2]
[403882982,1769626241645,-1152.0,0.00018062,2]
[403882983,1769626241654,-4500.0,0.00018082,2]
[403882984,1769626241667,-1256.0,0.00018181,2]
[403882985,1769626241676,-5000.0,0.0001863,2]
[403882986,1769626241685,-490.510313,0.000189,7]
[403882987,1769626241694,-200.03849225,0.00019,2]
[403882988,1769626241703,-1000.0,0.00019024,2]
[403882989,1769626241714,-244.0,0.00019024,2]
[403882990,1769626241723,-508.0614,0.00019178,2]
[403882991,1769626241732,-200.0,0.00019178,2]
[403882992,1769626241743,-508.0614,0.00019178,2]
[403882993,1769626241752,-508.0614,0.00019178,2]
[403882994,1769626241761,-508.0614,0.00019178,2]
[403882995,1769626241771,-2194.85911576,0.00019178,2]
[403882996,1769626241780,-5520.1,0.000192,2]
[403882997,1769626241789,-160.5,0.000192,2]
[403882998,1769626241798,-1381.6,0.000192,2]
[403882999,1769626241807,-539.17342334,0.0001958,2]
[403883000,1769626241817,-1613.0,0.00019819,2]
[403883001,1769626241826,-287.65253593,0.0002,3]
[403883002,1769626241835,-4905.103121,0.0002,7]
[403883003,1769626241845,-508.0614,0.0002,4]
[403883004,1769626241853,-508.0614,0.0002,4]
[403883005,1769626241863,-3883.43021948,0.00020335,2]
[403883006,1769626241872,-508.0614,0.00020411,5]
[403883007,1769626241882,-508.0614,0.00020411,5]
[403883008,1769626241891,-411.308015,0.00020548,2]
[403883009,1769626241901,-1000.0,0.00020927,2]
[403883010,1769626241910,-492.0,0.00020927,2]
[403883011,1769626241919,-595.59854904,0.0002158,2]
[403883012,1769626241929,-1401.458034,0.000216,7]
[403883013,1769626241938,-2258.0,0.00021747,2]
[403883014,1769626241948,-293.17,0.000222,7]
[403883015,1769626241957,-172.01,0.000228,7]
[403883016,1769626241966,-157.72,0.000228,2]
[403883017,1769626241975,-3883.43021948,0.00022916,2]
[403883018,1769626241983,-1000.0,0.00023019,10]
[403883019,1769626241992,-791.0,0.00023019,10]
[403883020,1769626242001,-652.02367474,0.0002358,2]
[403883021,1769626242010,-546.0,0.00023862,2]
[403883022,1769626242019,-276.13,0.00023878,2]
[403883023,1769626242028,-380.0,0.00024658,2]
[403883024,1769626242039,-610879.379074,0.000249,2]
[403883025,1769626242047,-1381.6,0.000251,14]
[403883026,1769626242056,-1000.0,0.00025321,10]
[403883027,1769626242066,-1000.0,0.00025321,10]
[403883028,1769626242075,-3883.43021948,0.00025497,2]
[403883029,1769626242084,-708.44880044,0.0002558,2]
[403883030,1769626242094,-5520.1,0.000256,2]
[403883031,1769626242103,-160.5,0.000256,7]
[403883032,1769626242112,-293.17,0.000259,7]
[403883033,1769626242122,-160.0,0.00026027,19]
[403883034,1769626242134,-167.0,0.00027,7]
[403883035,1769626242144,-157.1173049,0.00027397,2]
[403883036,1769626242153,-190.69263435,0.00027426,5]
[403883037,1769626242162,-764.87392614,0.0002758,2]
[403883038,1769626242171,-1071.528267,0.000277,4]
[403883039,1769626242179,-1000.0,0.00027853,30]
[403883040,1769626242188,-1000.0,0.00027853,30]
[403883041,1769626242197,-579.0,0.00027853,30]
[403883042,1769626242206,-250.0,0.00027945,5]
[403883043,1769626242215,-250.0,0.00027945,5]
[403883044,1769626242224,-3883.43021948,0.00028079,2]
[403883045,1769626242233,-1381.6,0.000282,14]
[403883046,1769626242241,-1000.0,0.000282,4]
[403883047,1769626242252,-190.69263435,0.00028274,5]
[403883048,1769626242261,-350.0,0.00028493,5]
[403883049,1769626242271,-350.0,0.00028493,5]
[403883050,1769626242279,-1000.0,0.000287,4]
[403883051,1769626242289,-5000.0,0.00028951,19]
[403883052,1769626242298,-450.0,0.00029041,5]
[403883053,1769626242307,-450.0,0.00029041,5]
[403883054,1769626242316,-160.5,0.000291,7]
[403883055,1769626242325,-161.0,0.00029109,3]
[403883056,1769626242334,-400.0,0.00029129,3]
[403883057,1769626242343,-4246.65524428,0.00029146,2]
[403883058,1769626242353,-1957.856,0.00029146,2]
[403883059,1769626242362,-1000.0,0.000292,4]
[403883060,1769626242371,-2030.296672,0.00029201,2]
[403883061,1769626242380,-2105.41764886,0.00029256,2]
[403883062,1769626242390,-2183.31810187,0.00029311,2]
[403883063,1769626242399,-2264.10087164,0.00029366,2]
[403883064,1769626242408,-2347.87260389,0.00029421,2]
[403883065,1769626242417,-2434.74389024,0.00029476,2]
[403883066,1769626242426,-716.0,0.00029498,2]
[403883067,1769626242436,-180.381,0.00029498,2]
[403883068,1769626242444,-558.797,0.00029498,2]
[403883069,1769626242454,-418.0,0.00029498,2]
[403883070,1769626242463,-630.0,0.00029498,2]
[403883071,1769626242472,-1369.0,0.00029498,2]
[403883072,1769626242481,-157.72,0.000295,2]
[403883073,1769626242490,-293.17,0.000295,7]
[403883074,1769626242499,-2524.82941417,0.00029531,2]
[403883075,1769626242508,-821.29905184,0.0002958,2]
[403883076,1769626242517,-168.0,0.00029583,2]
[403883077,1769626242527,-2618.2481025,0.00029586,2]
[403883078,1769626242536,-236.57189686,0.00029589,5]
[403883079,1769626242545,-550.0,0.00029589,5]
[403883080,1769626242555,-5520.1,0.000296,2]
[403883081,1769626242564,-500.0,0.0002964,7]
[403883082,1769626242574,-2715.12328229,0.00029641,2]
[403883083,1769626242583,-2460.09987822,0.00029696,2]
[403883084,1769626242593,-1000.0,0.000297,4]
[403883085,1769626242602,-1043.65606314,0.00029797,2]
[403883086,1769626242611,-305.6755923,0.00029994,30]
[403883087,1769626242620,-305.6755923,0.00029994,30]
[403883088,1769626242630,-305.6755923,0.00029994,30]
[403883089,1769626242639,-305.6755923,0.00029994,30]
[403883090,1769626242648,-305.6755923,0.00029994,30]
[403883091,1769626242658,-305.6755923,0.00029994,30]
[403883092,1769626242670,-305.6755923,0.00029994,30]
[403883093,1769626242680,-305.6755923,0.00029994,30]
[403883094,1769626242689,-305.6755923,0.00029994,30]
[403883095,1769626242698,-305.6755923,0.00029994,30]
[403883096,1769626242709,-305.6755923,0.00029994,30]
[403883097,1769626242718,-305.6755923,0.00029994,30]
[403883098,1769626242728,-22251.8368835,0.0003,2]
[403883099,1769626242738,-1000.0,0.0003,14]
[403883100,1769626242747,-190.0,0.0003,14]
[403883101,1769626242756,-1000.0,0.0003,14]
[403883102,1769626242766,-178.5494496,0.0003,14]
[403883103,1769626242775,-151.0,0.0003,14]
[403883104,1769626242784,-563657.76,0.00030004,6]
[403883105,1769626242793,-73017.81,0.00030004,6]
[403883106,1769626242803,-1000.0,0.00030043,14]
[403883107,1769626242812,-151.0,0.00030067,14]
[403883108,1769626242821,-1000.0,0.00030087,14]
[403883109,1769626242831,-1000.0,0.0003013,14]
[403883110,1769626242840,-151.0,0.00030134,14]
[403883111,1769626242850,-175.20269643,0.00030137,2]
[403883112,1769626242860,-650.0,0.00030137,5]
[403883113,1769626242869,-1000.0,0.00030173,14]
[403883114,1769626242878,-1000.0,0.000302,4]
[403883115,1769626242887,-151.0,0.00030201,14]
[403883116,1769626242897,-603.9975254,0.0003021,30]
[403883117,1769626242906,-603.9975254,0.0003021,30]
[403883118,1769626242916,-185.4228781,0.0003021,30]
[403883119,1769626242925,-352.557881,0.0003021,30]
[403883120,1769626242934,-185.4228781,0.0003021,30]
[403883121,1769626242943,-185.4228781,0.0003021,30]
[403883122,1769626242952,-185.4228781,0.0003021,30]
[403883123,1769626242961,-185.4228781,0.0003021,30]
[403883124,1769626242971,-185.4228781,0.0003021,30]
[403883125,1769626242980,-1000.0,0.00030217,14]
[403883126,1769626242989,-1000.0,0.00030246,14]
[403883127,1769626242999,-1000.0,0.0003026,14]
[403883128,1769626243008,-151.0,0.00030268,14]
[403883129,1769626243018,-1000.0,0.00030303,14]
[403883130,1769626243027,-305.6755923,0.00030323,30]
[403883131,1769626243036,-305.6755923,0.00030323,30]
[403883132,1769626243046,-305.6755923,0.00030323,30]
[403883133,1769626243056,-305.6755923,0.00030323,30]
[403883134,1769626243065,-305.6755923,0.00030323,30]
[403883135,1769626243074,-305.6755923,0.00030323,30]
[403883136,1769626243084,-305.6755923,0.00030323,30]
[403883137,1769626243093,-305.6755923,0.00030323,30]
[403883138,1769626243102,-305.6755923,0.00030323,30]
[403883140,1769626243112,-305.6755923,0.00030323,30]
[403883141,1769626243121,-305.6755923,0.00030323,30]
[403883142,1769626243130,-305.6755923,0.00030323,30]
[403883143,1769626243139,-305.6755923,0.00030323,30]
[403883144,1769626243149,-168.0,0.00030324,2]
[403883145,1769626243158,-151.0,0.00030335,14]
[403883146,1769626243167,-242.18114262,0.00030336,2]
[403883147,1769626243176,-1000.0,0.00030347,14]
[403883148,1769626243185,-1000.0,0.0003039,14]
[403883149,1769626243193,-151.0,0.00030402,14]
[403883150,1769626243203,-400.0,0.00030409,3]
[403883151,1769626243212,-190.0,0.00030411,14]
[403883152,1769626243221,-400.0,0.00030417,3]
[403883153,1769626243230,-1000.0,0.00030434,14]
[403883154,1769626243239,-400.0,0.00030452,3]
[403883155,1769626243251,-151.0,0.00030469,14]
[403883156,1769626243260,-1000.0,0.00030477,14]
[403883157,1769626243270,-1000.0,0.00030491,14]
[403883158,1769626243279,-1381.6,0.000305,14]
[403883159,1769626243288,-1000.0,0.0003052,14]
[403883160,1769626243298,-151.0,0.00030536,14]
[403883161,1769626243307,-800.0,0.00030539,2]
[403883162,1769626243316,-803.5002799,0.00030549,2]
[403883163,1769626243325,-800.0,0.00030552,2]
[403883164,1769626243334,-270.0,0.00030555,2]
[403883166,1769626243343,-5000.0,0.00030559,30]
[403883168,1769626243352,-5000.0,0.00030559,30]
[403883169,1769626243361,-5000.0,0.00030559,30]
[403883171,1769626243370,-5000.0,0.00030559,30]
[403883172,1769626243379,-2280.84,0.00030559,30]
[403883174,1769626243388,-1000.0,0.00030564,14]
[403883177,1769626243397,-1296.2382334,0.00030566,2]
[403883179,1769626243406,-377.72194083,0.00030566,2]
[403883182,1769626243416,-1510.88776332,0.00030566,2]
[403883185,1769626243425,-3399.49746748,0.00030566,2]
[403883187,1769626243434,-6043.5510533,0.00030566,2]
[403883188,1769626243443,-503.58573678,0.00030566,2]
[403883189,1769626243451,-2014.34294713,0.00030566,2]
[403883190,1769626243460,-4532.27163105,0.00030566,2]
[403883191,1769626243470,-3399.07531704,0.00030566,2]
[403883193,1769626243479,-5184.95293358,0.00030566,2]
[403883194,1769626243488,-9443.04852078,0.00030566,2]
[403883195,1769626243496,-3329.13329218,0.00030593,7]
[403883196,1769626243505,-4308.73587979,0.00030593,7]
[403883197,1769626243514,-698.30947044,0.00030593,7]
[403883198,1769626243523,-2793.23788178,0.00030593,7]
[403883199,1769626243531,-21590.59692259,0.000306,2]
[403883200,1769626243540,-800.0,0.000306,2]
[403883201,1769626243550,-151.0,0.00030603,14]
[403883202,1769626243559,-1000.0,0.00030607,14]
[403883203,1769626243568,-6278.50044876,0.00030608,7]
[403883204,1769626243577,-3046.92234156,0.00030608,7]
[403883205,1769626243586,-796.4997201,0.00030619,2]
[403883206,1769626243595,-880.504,0.00030629,7]
[403883207,1769626243604,-1000.0,0.00030639,30]
[403883208,1769626243613,-1000.0,0.00030639,30]
[403883209,1769626243623,-1000.0,0.00030639,30]
[403883210,1769626243632,-1000.0,0.0003065,14]
[403883211,1769626243641,-3883.43021948,0.0003066,2]
[403883212,1769626243650,-151.0,0.0003067,14]
[403883213,1769626243662,-750.0,0.00030685,5]
[403883214,1769626243672,-1000.0,0.00030694,14]
[403883215,1769626243681,-151.0,0.00030699,4]
[403883216,1769626243691,-156.70093233,0.00030699,4]
[403883217,1769626243813,-500.0,0.00030699,4]
[403883218,1769626243823,-500.0,0.00030699,4]
[403883219,1769626243832,-151.0,0.00030699,4]
[403883220,1769626243841,-174.61919141,0.00030699,4]
[403883221,1769626243850,-151.0,0.00030699,4]
[403883222,1769626243860,-181.08010149,0.00030699,4]
[403883223,1769626243868,-289.41339882,0.00030699,4]
[403883224,1769626243878,-1000.0,0.00030699,4]
[403883225,1769626243887,-1000.0,0.00030699,4]
[403883226,1769626243897,-250.0,0.00030699,4]
[403883227,1769626243906,-250.0,0.00030699,4]
[403883228,1769626243916,-250.0,0.00030699,4]
[403883229,1769626243925,-169.33681227,0.00030699,4]
[403883230,1769626243934,-174.61919141,0.00030699,4]
[403883231,1769626243943,-181.08010149,0.00030699,4]
[403883232,1769626243952,-478.75725327,0.00030699,4]
[403883233,1769626243961,-187.78006525,0.00030699,4]
[403883234,1769626243970,-496.47127164,0.00030699,4]
[403883235,1769626243980,-194.72792766,0.00030699,4]
[403883236,1769626243989,-514.84070869,0.00030699,4]
[403883237,1769626243998,-201.93286099,0.00030699,4]
[403883238,1769626244007,-533.88981491,0.00030699,4]
[403883239,1769626244016,-209.40437684,0.00030699,4]
[403883240,1769626244025,-553.64373807,0.00030699,4]
[403883241,1769626244034,-217.15233878,0.00030699,4]
[403883242,1769626244043,-574.12855637,0.00030699,4]
[403883243,1769626244052,-225.18697532,0.00030699,4]
[403883245,1769626244061,-348.5216759,0.00030699,4]
[403883247,1769626244069,-233.51889341,0.00030699,4]
[403883249,1769626244078,-242.15909246,0.00030699,4]
[403883251,1769626244087,-251.11897888,0.00030699,4]
[403883253,1769626244096,-260.4103811,0.00030699,4]
[403883255,1769626244105,-270.0455652,0.00030699,4]
[403883257,1769626244114,-280.03725112,0.00030699,4]
[403883259,1769626244124,-290.39862941,0.00030699,4]
[403883261,1769626244133,-301.1433787,0.00030699,4]
[403883262,1769626244142,-1000.0,0.000307,4]
[403883263,1769626244151,-250.0,0.000307,10]
[403883264,1769626244161,-779.0,0.000307,2]
[403883265,1769626244170,-95266.50612841,0.000307,6]
[403883266,1769626244179,-3242.8654672,0.00030717,2]
[403883267,1769626244188,-5385.0099341,0.00030735,2]
[403883268,1769626244197,-664.65167582,0.00030737,14]
[403883269,1769626244206,-937.77202557,0.00030737,14]
[403883270,1769626244215,-151.0,0.00030737,14]
[403883271,1769626244224,-1391.8249567,0.00030739,2]
[403883272,1769626244233,-500.0,0.00030747,11]
[403883273,1769626244242,-500.0,0.00030747,11]
[403883274,1769626244250,-151.0,0.00030754,31]
[403883275,1769626244259,-151.0,0.00030754,31]
[403883276,1769626244269,-151.0,0.00030754,31]
[403883277,1769626244277,-155.887886,0.00030754,31]
[403883278,1769626244286,-266.479841,0.00030754,31]
[403883279,1769626244295,-151.877143,0.00030754,31]
[403883280,1769626244304,-288.165348,0.00030754,31]
[403883281,1769626244313,-201.250084,0.00030754,31]
[403883282,1769626244323,-201.250084,0.00030754,31]
[403883283,1769626244332,-201.250084,0.00030754,31]
[403883284,1769626244341,-201.250084,0.00030754,31]
[403883285,1769626244350,-151.0,0.00030754,31]
[403883286,1769626244359,-151.0,0.00030754,31]
[403883287,1769626244368,-250.000238,0.00030754,31]
[403883288,1769626244378,-250.000238,0.00030754,31]
[403883289,1769626244387,-250.000238,0.00030754,31]
[403883290,1769626244396,-250.000238,0.00030754,31]
[403883291,1769626244405,-1102056.03696661,0.00030754,30]
[403883292,1769626244838,-3e-08,0.00030754,30]
[403883293,1769626244852,-396.0,0.00030754,30]
[403883296,1769626245803,-500.0,0.00012591,2]
[403883297,1769626245814,-2312.83697232,0.00030699,4]
[403883298,1769626245823,-2398.4119403,0.00030699,4]
[403883299,1769626245832,-2487.15318209,0.00030699,4]
[403883300,1769626245840,-1122.44116694,0.00030699,4]
[403883301,1769626669544,1000.0,0.00034907,120]
[403883302,1769626724039,1502.0,0.00035092,120]
[403883303,1769626935017,5066.94485182,0.00035092,120]
[403883304,1769627053323,1000.0,0.00035092,120]
[403883331,1769627431798,-582.0,0.00011532,2]
[403883333,1769627431808,-307.20346214,0.00011605,2]
[403883336,1769627431820,-300.0,0.00012323,2]
[403883338,1769627431831,-300.0,0.00012323,2]
[403883340,1769627431841,-300.0,0.00012323,2]
[403883342,1769627431854,-1200.0,0.00012323,2]
[403883345,1769627431864,-121768.59819433,0.00012324,2]
[403883450,1769627437810,-2893.99,0.00012324,2]
[403883478,1769627438071,-410631.14066905,0.00012324,2]
[403883480,1769627438083,-1784.0,0.00012324,2]
[403883482,1769627438097,-1182922.27113662,0.00012324,2]
[403883485,1769627438112,-367.701,0.0001234,2]
[403883487,1769627438123,-500.0,0.00012423,2]
[403883489,1769627438134,-269.57568448,0.00012423,2]
[403883491,1769627438144,-500.0,0.00012423,2]
[403883493,1769627438155,-500.0,0.00012423,2]
[403883495,1769627438166,-155.15994394,0.00012423,2]
[403883497,1769627438178,-493.08160795,0.00012423,2]
[403883499,1769627438189,-392.60378737,0.00012423,2]
[403883502,1769627438200,-45885.26340046,0.00012424,2]
[403883504,1769627438210,-9387.71745789,0.000125,2]
[403883506,1769627438221,-151.0,0.000126,2]
[403883508,1769627438231,-151.0,0.000126,2]
[403883510,1769627438242,-151.0,0.000126,2]
[403883512,1769627438252,-151.0,0.000126,2]
[403883514,1769627438263,-151.0,0.000126,2]
[403883517,1769627438274,-151.0,0.000126,2]
[403883519,1769627438284,-151.0,0.000126,2]
[403883521,1769627438295,-151.0,0.000126,2]
[403883523,1769627438306,-151.0,0.000126,2]
[403883525,1769627438317,-151.0,0.000126,2]
[403883527,1769627438327,-151.0,0.000126,2]
[403883529,1769627438338,-300.824391,0.00012685,2]
[403883532,1769627438349,-300.0,0.00012746,2]
[403883553,1769627438359,-300.0,0.00012746,2]
[403883556,1769627438567,-300.0,0.00012746,2]
[403883558,1769627438577,-300.0,0.00012746,2]
[403883560,1769627438587,-300.0,0.00012746,2]
[403883562,1769627438597,-300.0,0.00012746,2]
[403883564,1769627438607,-300.0,0.00012746,2]
[403883566,1769627438616,-300.0,0.00012746,2]
[403883568,1769627438626,-300.0,0.00012746,2]
[403883570,1769627438636,-300.0,0.00012746,2]
[403883572,1769627438645,-300.0,0.00012746,2]
[403883574,1769627438653,-300.0,0.00012746,2]
[403883576,1769627438663,-300.0,0.00012746,2]
[403883578,1769627438672,-300.0,0.00012746,2]
[403883580,1769627438681,-300.0,0.00012746,2]
[403883582,1769627438690,-3883.43021948,0.000129,2]
[403883584,1769627438700,-500.0,0.00012999,2]
[403883586,1769627438712,-500.0,0.00012999,2]
[403883588,1769627438721,-500.0,0.00012999,2]
[403883590,1769627438730,-500.0,0.00012999,2]
[403883592,1769627438739,-500.0,0.00012999,2]
[403883594,1769627438748,-500.0,0.00012999,2]
[403883596,1769627438757,-500.0,0.00012999,2]
[403883598,1769627438767,-500.0,0.00012999,2]
[403883600,1769627438776,-500.0,0.00012999,2]
[403883602,1769627438785,-500.0,0.00012999,2]
[403883604,1769627438794,-500.0,0.00012999,2]
[403883606,1769627438804,-500.0,0.00012999,2]
[403883608,1769627438813,-600.0,0.00013,2]
[403883610,1769627438822,-2736.94264847,0.00013,2]
[403883612,1769627438831,-500.0,0.00013136,2]
[403883614,1769627438841,-500.0,0.00013136,2]
[403883616,1769627438851,-500.0,0.00013136,2]
[403883618,1769627438860,-500.0,0.00013136,2]
[403883620,1769627438869,-500.0,0.00013136,2]
[403883622,1769627438879,-500.0,0.00013136,2]
[403883624,1769627438888,-500.0,0.00013136,2]
[403883626,1769627438898,-500.0,0.00013136,2]
[403883628,1769627438907,-500.0,0.00013136,2]
[403883630,1769627438916,-500.0,0.00013136,2]
[403883632,1769627438926,-500.0,0.00013136,2]
[403883634,1769627438937,-300.824391,0.00013219,2]
[403883636,1769627438946,-500.0,0.00013273,2]
[403883638,1769627438956,-500.0,0.00013273,2]
[403883640,1769627438966,-176.20020011,0.00013273,2]
[403883642,1769627438975,-500.0,0.00013273,2]
[403883644,1769627438985,-500.0,0.00013273,2]
[403883646,1769627438994,-500.0,0.00013273,2]
[403883648,1769627439003,-500.0,0.00013273,2]
[403883650,1769627439013,-500.0,0.00013273,2]
[403883652,1769627439026,-201.34473985,0.00013273,2]
[403883654,1769627439036,-500.0,0.00013273,2]
[403883656,1769627439045,-500.0,0.00013273,2]
[403883658,1769627439055,-500.0,0.00013273,2]
[403883660,1769627439065,-600.0,0.00013273,2]
[403883662,1769627439076,-500.0,0.00013273,2]
[403883664,1769627439086,-500.0,0.00013273,2]
[403883666,1769627439097,-500.0,0.00013273,2]
[403883668,1769627439108,-450.66953665,0.00013273,2]
[403883670,1769627439119,-500.0,0.00013273,2]
[403883672,1769627439129,-500.0,0.00013273,2]
[403883674,1769627439140,-500.0,0.00013273,2]
[403883676,1769627439150,-500.0,0.0001341,2]
[403883678,1769627439159,-503.23543832,0.0001341,2]
[403883680,1769627439169,-500.0,0.0001341,2]
[403883682,1769627439179,-500.0,0.0001341,2]
[403883684,1769627439188,-500.0,0.0001341,2]
[403883686,1769627439198,-158.24791449,0.0001341,2]
[403883688,1769627439207,-207.53367083,0.0001341,2]
[403883690,1769627439217,-253.37170978,0.0001341,2]
[403883692,1769627439226,-500.0,0.0001341,2]
[403883694,1769627439235,-500.0,0.0001341,2]
[403883696,1769627439244,-500.0,0.0001341,2]
[403883698,1769627439254,-1020.92657876,0.00013504,2]
[403883700,1769627439262,-420.0,0.00013524,2]
[403883702,1769627439271,-420.0,0.00013524,2]
[403883704,1769627439281,-500.0,0.00013547,2]
[403883706,1769627439291,-500.0,0.00013547,2]
[403883708,1769627439300,-164.98871269,0.00013547,2]
[403883710,1769627439310,-500.0,0.00013547,2]
[403883712,1769627439321,-500.0,0.00013547,2]
[403883714,1769627439331,-500.0,0.00013547,2]
[403883715,1769627439340,-500.0,0.00013547,2]
[403883718,1769627439351,-500.0,0.00013547,2]
[403883720,1769627439361,-500.0,0.00013547,2]
[403883721,1769627439370,-1680.0,0.00013555,2]
[403883723,1769627439379,-362.50008532,0.00013605,2]
[403883725,1769627439388,-300.0,0.00013673,2]
[403883727,1769627439398,-151.86770743,0.00013684,2]
[403883729,1769627439407,-500.0,0.00013684,2]
[403883731,1769627439416,-500.0,0.00013684,2]
[403883733,1769627439426,-500.0,0.00013684,2]
[403883735,1769627439435,-500.0,0.00013684,2]
[403883737,1769627439444,-500.0,0.00013684,2]
[403883739,1769627439454,-500.0,0.00013698,2]
[403883741,1769627439463,-500.0,0.00013698,2]
[403883743,1769627439472,-500.0,0.00013698,2]
[403883745,1769627439482,-500.0,0.00013698,2]
[403883747,1769627439491,-500.0,0.00013698,2]
[403883749,1769627439501,-500.0,0.00013698,2]
[403883751,1769627439510,-500.0,0.00013698,2]
[403883753,1769627439519,-500.0,0.00013698,2]
[403883755,1769627439529,-500.0,0.00013698,2]
[403883757,1769627439539,-500.0,0.00013698,2]
[403883759,1769627439548,-500.0,0.00013698,2]
[403883761,1769627439557,-500.0,0.00013698,2]
[403883763,1769627439566,-500.0,0.00013698,2]
[403883765,1769627439575,-500.0,0.00013698,2]
[403883767,1769627439584,-179.13377455,0.00013698,2]
[403883769,1769627439593,-500.0,0.00013698,2]
[403883771,1769627439604,-500.0,0.00013698,2]
[403883773,1769627439613,-500.0,0.00013698,2]
[403883775,1769627439622,-500.0,0.00013698,2]
[403883777,1769627439632,-500.0,0.00013698,2]
[403883779,1769627439641,-500.0,0.00013698,2]
[403883781,1769627439650,-500.0,0.00013698,2]
[403883783,1769627439659,-500.0,0.00013698,2]
[403883785,1769627439668,-500.0,0.00013698,2]
[403883787,1769627439679,-500.0,0.00013698,2]
[403883789,1769627439688,-245.05641761,0.00013698,2]
[403883791,1769627439697,-500.0,0.00013698,2]
[403883793,1769627439706,-500.0,0.00013698,2]
[403883795,1769627439715,-500.0,0.00013698,2]
[403883797,1769627439725,-500.0,0.00013698,2]
[403883798,1769627439735,-500.0,0.00013698,2]
[403883800,1769627439745,-500.0,0.00013698,2]
[403883802,1769627439754,-500.0,0.00013698,2]
[403883805,1769627439765,-500.0,0.00013698,2]
[403883806,1769627439774,-500.0,0.00013698,2]
[403883808,1769627439784,-321.00935932,0.00013698,2]
[403883810,1769627439794,-500.0,0.00013698,2]
[403883812,1769627439803,-500.0,0.00013698,2]
[403883814,1769627439813,-231.9426637,0.00013698,2]
[403883816,1769627439822,-500.0,0.00013698,2]
[403883818,1769627439831,-500.0,0.00013698,2]
[403883820,1769627439840,-500.0,0.00013698,2]
[403883821,1769627439849,-199.72375222,0.00013698,2]
[403883822,1769627439857,-493.63025993,0.00013698,2]
[403883823,1769627439866,-1000.0,0.00013699,2]
[403883824,1769627439875,-500.0,0.00013699,2]
[403883825,1769627439884,-500.0,0.00013699,2]
[403883826,1769627439893,-500.0,0.00013699,2]
[403883827,1769627439902,-532.28183888,0.00013699,2]
[403883828,1769627439911,-500.0,0.00013699,2]
[403883829,1769627439920,-260.16839164,0.00013699,2]
[403883830,1769627439929,-500.0,0.00013699,2]
[403883831,1769627439938,-500.0,0.00013699,2]
[403883832,1769627439947,-500.0,0.00013699,2]
[403883833,1769627439955,-445.1362178,0.00013699,2]
[403883834,1769627439965,-443.49274844,0.00013699,2]
[403883835,1769627439974,-500.0,0.00013699,2]
[403883836,1769627439984,-500.0,0.00013699,2]
[403883837,1769627439993,-500.0,0.00013699,2]